[Event "Late-Titled-Tuesday-Blitz-April-30-2024"]
[Site "Chess.com"]
[Date "2024.04.30"]
[Round "3"]
[White "ArchibaldCerveza29"]
[Black "OIAM03"]
[Result "1-0"]
[WhiteElo "2361"]
[BlackElo "1948"]
[TimeControl "180+1"]
[EndTime "14:27:22 PDT"]
[Termination "ArchibaldCerveza29 won on time"]

1. e4 {[%clk 0:02:59.7]} 1... c5 {[%clk 0:02:59.5]} 2. c3 {[%clk 0:02:58.2]}
2... d5 {[%clk 0:02:53]} 3. exd5 {[%clk 0:02:59.1]} 3... Nf6 {[%clk 0:02:52.8]}
4. d4 {[%clk 0:02:59.7]} 4... cxd4 {[%clk 0:02:45]} 5. cxd4 {[%clk 0:03:00.6]}
5... Nxd5 {[%clk 0:02:45]} 6. Nf3 {[%clk 0:03:01.2]} 6... e6 {[%clk 0:02:41.7]}
7. Nc3 {[%clk 0:03:02.1]} 7... Nc6 {[%clk 0:02:37.2]} 8. Bd3 {[%clk 0:03:01.3]}
8... Be7 {[%clk 0:02:30.7]} 9. O-O {[%clk 0:03:01.3]} 9... O-O {[%clk
0:02:22.3]} 10. a3 {[%clk 0:03:00.2]} 10... h6 {[%clk 0:02:14.7]} 11. Be3 {[%clk
0:02:56.4]} 11... Bf6 {[%clk 0:02:04.6]} 12. Qd2 {[%clk 0:02:53]} 12... Nxe3
{[%clk 0:01:39.2]} 13. fxe3 {[%clk 0:02:53.9]} 13... e5 {[%clk 0:01:28.9]} 14.
d5 {[%clk 0:02:43.2]} 14... Na5 {[%clk 0:01:24.6]} 15. Rad1 {[%clk 0:02:40.8]}
15... Nb3 {[%clk 0:01:17.9]} 16. Qf2 {[%clk 0:02:38.8]} 16... Nc5 {[%clk
0:01:04.7]} 17. Bb1 {[%clk 0:02:39.2]} 17... Re8 {[%clk 0:01:00.2]} 18. Kh1
{[%clk 0:02:30.1]} 18... Bg4 {[%clk 0:00:31]} 19. e4 {[%clk 0:02:24.7]} 19... b6
{[%clk 0:00:30.4]} 20. h3 {[%clk 0:02:18.6]} 20... Bxf3 {[%clk 0:00:27.3]} 21.
Qxf3 {[%clk 0:02:19.5]} 21... Rc8 {[%clk 0:00:23.7]} 22. Ne2 {[%clk 0:02:16.9]}
22... Qd7 {[%clk 0:00:10.8]} 23. Ng3 {[%clk 0:02:15.1]} 23... Qb5 {[%clk
0:00:07.7]} 24. Nh5 {[%clk 0:02:12.4]} 24... Nd7 {[%clk 0:00:03.5]} 25. Bd3
{[%clk 0:02:06.1]} 25... Qxb2 {[%clk 0:00:01.9]} 26. Rb1 {[%clk 0:02:06.8]}
26... Qxa3 {[%clk 0:00:01.8]} 27. Bb5 {[%clk 0:02:07.4]} 27... Qxf3 {[%clk
0:00:01.3]} 28. Rxf3 {[%clk 0:02:03.6]} 1-0

[Event "Late-Titled-Tuesday-Blitz-April-30-2024"]
[Site "Chess.com"]
[Date "2024.04.30"]
[Round "3"]
[White "Evan_Attaker"]
[Black "jactorres"]
[Result "1-0"]
[WhiteElo "2643"]
[BlackElo "2444"]
[TimeControl "180+1"]
[EndTime "14:27:27 PDT"]
[Termination "Evan_Attaker won by checkmate"]

1. Nf3 {[%clk 0:03:00.9]} 1... Nf6 {[%clk 0:02:58]} 2. c4 {[%clk 0:03:00.7]}
2... c6 {[%clk 0:02:49.2]} 3. d4 {[%clk 0:03:00.2]} 3... d5 {[%clk 0:02:48.6]}
4. Nc3 {[%clk 0:03:00.9]} 4... e6 {[%clk 0:02:47.1]} 5. g3 {[%clk 0:03:00.8]}
5... Be7 {[%clk 0:02:46]} 6. Bg2 {[%clk 0:03:01.1]} 6... a6 {[%clk 0:02:45.7]}
7. a4 {[%clk 0:03:00.3]} 7... Nbd7 {[%clk 0:02:44.2]} 8. O-O {[%clk 0:03:00.9]}
8... a5 {[%clk 0:02:41.8]} 9. Qc2 {[%clk 0:03:00.6]} 9... O-O {[%clk 0:02:41.1]}
10. e4 {[%clk 0:03:00.6]} 10... dxe4 {[%clk 0:02:40.2]} 11. Nxe4 {[%clk
0:03:01.5]} 11... c5 {[%clk 0:02:21.3]} 12. Rd1 {[%clk 0:02:45.3]} 12... Qb6
{[%clk 0:02:01.8]} 13. Ne5 {[%clk 0:02:22.2]} 13... Nxe5 {[%clk 0:01:40.5]} 14.
dxe5 {[%clk 0:02:23.1]} 14... Nxe4 {[%clk 0:01:36.7]} 15. Bxe4 {[%clk 0:02:24]}
15... h6 {[%clk 0:01:30.8]} 16. Bf4 {[%clk 0:02:14.7]} 16... Rd8 {[%clk
0:01:29.1]} 17. Rxd8+ {[%clk 0:02:12.9]} 17... Bxd8 {[%clk 0:01:28.9]} 18. Rd1
{[%clk 0:02:11.8]} 18... Qc7 {[%clk 0:01:12.5]} 19. Qd2 {[%clk 0:02:03.6]} 19...
Be7 {[%clk 0:01:11.8]} 20. h4 {[%clk 0:02:04.2]} 20... h5 {[%clk 0:00:22.7]} 21.
Bg5 {[%clk 0:01:46.2]} 21... Bxg5 {[%clk 0:00:06.6]} 22. Qxg5 {[%clk 0:01:47.1]}
22... Rb8 {[%clk 0:00:02.2]} 23. Qd8+ {[%clk 0:01:41.2]} 23... Qxd8 {[%clk
0:00:01]} 24. Rxd8# {[%clk 0:01:42.1]} 1-0

[Event "Late-Titled-Tuesday-Blitz-April-30-2024"]
[Site "Chess.com"]
[Date "2024.04.30"]
[Round "3"]
[White "gmcorrales"]
[Black "SVijayalakshmi"]
[Result "1-0"]
[WhiteElo "2829"]
[BlackElo "2559"]
[TimeControl "180+1"]
[EndTime "14:27:32 PDT"]
[Termination "gmcorrales won by resignation"]

1. e4 {[%clk 0:02:58.6]} 1... e5 {[%clk 0:02:59.3]} 2. Nf3 {[%clk 0:02:56.2]}
2... Nc6 {[%clk 0:02:59.4]} 3. d4 {[%clk 0:02:56]} 3... exd4 {[%clk 0:02:58.7]}
4. Nxd4 {[%clk 0:02:56.9]} 4... Nf6 {[%clk 0:02:58.3]} 5. Nxc6 {[%clk
0:02:57.3]} 5... bxc6 {[%clk 0:02:58.5]} 6. e5 {[%clk 0:02:57.9]} 6... Qe7
{[%clk 0:02:58.5]} 7. Qe2 {[%clk 0:02:58.4]} 7... Nd5 {[%clk 0:02:58.6]} 8. h4
{[%clk 0:02:56.6]} 8... Nb6 {[%clk 0:02:38.4]} 9. g3 {[%clk 0:02:48.8]} 9... Bb7
{[%clk 0:02:37.7]} 10. Bg2 {[%clk 0:02:48.7]} 10... O-O-O {[%clk 0:02:37.1]} 11.
O-O {[%clk 0:02:44.6]} 11... f6 {[%clk 0:02:33.2]} 12. Re1 {[%clk 0:02:39.2]}
12... fxe5 {[%clk 0:02:31.8]} 13. Bg5 {[%clk 0:02:37]} 13... Qf7 {[%clk
0:02:27.3]} 14. Bxd8 {[%clk 0:02:36.5]} 14... Kxd8 {[%clk 0:02:27.5]} 15. Qxe5
{[%clk 0:02:25.2]} 15... Bd6 {[%clk 0:02:27.3]} 16. Qe2 {[%clk 0:02:18.1]} 16...
Rf8 {[%clk 0:02:20]} 17. Nc3 {[%clk 0:01:55.6]} 17... Kc8 {[%clk 0:02:18.7]} 18.
Ne4 {[%clk 0:01:53.4]} 18... Kb8 {[%clk 0:02:10]} 19. Nxd6 {[%clk 0:01:36.6]}
19... cxd6 {[%clk 0:02:09.3]} 20. b3 {[%clk 0:01:31.9]} 20... Nc8 {[%clk
0:01:59.9]} 21. c4 {[%clk 0:01:27.3]} 21... h6 {[%clk 0:01:51]} 22. Rad1 {[%clk
0:01:26.1]} 22... g5 {[%clk 0:01:48.9]} 23. hxg5 {[%clk 0:01:14]} 23... hxg5
{[%clk 0:01:49]} 24. Rd3 {[%clk 0:01:13.6]} 24... Qh7 {[%clk 0:01:42.4]} 25. Qe4
{[%clk 0:01:07.9]} 25... Qh6 {[%clk 0:01:33.7]} 26. g4 {[%clk 0:00:58.7]} 26...
Rf4 {[%clk 0:01:29.5]} 27. Qe2 {[%clk 0:00:55]} 27... Qh4 {[%clk 0:01:26.1]} 28.
Rg3 {[%clk 0:00:52.8]} 28... Rf6 {[%clk 0:01:24.8]} 29. Rh3 {[%clk 0:00:52]}
29... Re6 {[%clk 0:01:19.2]} 30. Rxh4 {[%clk 0:00:48.8]} 30... Rxe2 {[%clk
0:01:19]} 31. Rxe2 {[%clk 0:00:49.7]} 31... gxh4 {[%clk 0:01:19.8]} 32. g5
{[%clk 0:00:49.8]} 1-0

[Event "Late-Titled-Tuesday-Blitz-April-30-2024"]
[Site "Chess.com"]
[Date "2024.04.30"]
[Round "3"]
[White "SergioMoralesG"]
[Black "AlexeiShirov"]
[Result "0-1"]
[WhiteElo "2464"]
[BlackElo "2816"]
[TimeControl "180+1"]
[EndTime "14:27:35 PDT"]
[Termination "AlexeiShirov won by resignation"]

1. d4 {[%clk 0:02:32]} 1... d5 {[%clk 0:02:59.6]} 2. c4 {[%clk 0:02:32]} 2... e6
{[%clk 0:02:59.7]} 3. Nf3 {[%clk 0:02:32.1]} 3... Nf6 {[%clk 0:02:59.7]} 4. Nc3
{[%clk 0:02:32.6]} 4... c6 {[%clk 0:02:57.8]} 5. e3 {[%clk 0:02:30.3]} 5... Nbd7
{[%clk 0:02:57.1]} 6. Qc2 {[%clk 0:02:29.7]} 6... Bd6 {[%clk 0:02:56.8]} 7. Bd3
{[%clk 0:02:29]} 7... O-O {[%clk 0:02:53.6]} 8. O-O {[%clk 0:02:29.1]} 8... dxc4
{[%clk 0:02:53.7]} 9. Bxc4 {[%clk 0:02:30]} 9... b5 {[%clk 0:02:53.9]} 10. Be2
{[%clk 0:02:26.3]} 10... Bb7 {[%clk 0:02:53.3]} 11. h3 {[%clk 0:02:18.2]} 11...
e5 {[%clk 0:02:47]} 12. Rd1 {[%clk 0:02:11.2]} 12... Qe7 {[%clk 0:02:42.2]} 13.
dxe5 {[%clk 0:02:08.7]} 13... Nxe5 {[%clk 0:02:41.3]} 14. Nd4 {[%clk 0:02:09.2]}
14... g6 {[%clk 0:02:40]} 15. f4 {[%clk 0:01:55.9]} 15... Nc4 {[%clk 0:02:37.3]}
16. e4 {[%clk 0:01:18.5]} 16... Bc5 {[%clk 0:02:20.9]} 17. e5 {[%clk 0:01:11]}
17... Nxe5 {[%clk 0:02:15.5]} 18. fxe5 {[%clk 0:00:58.8]} 18... Qxe5 {[%clk
0:02:15]} 19. Bf3 {[%clk 0:00:15.1]} 19... Bxd4+ {[%clk 0:02:12.7]} 20. Kh1
{[%clk 0:00:15.7]} 20... Bb6 {[%clk 0:02:07.5]} 21. Bh6 {[%clk 0:00:12.4]} 21...
Bc7 {[%clk 0:02:05.4]} 22. Kg1 {[%clk 0:00:11.8]} 22... Qh2+ {[%clk 0:02:00.9]}
23. Kf1 {[%clk 0:00:11.2]} 23... Rfe8 {[%clk 0:01:57.5]} 24. Ne2 {[%clk
0:00:10.3]} 24... Bb6 {[%clk 0:01:54.3]} 25. Nd4 {[%clk 0:00:08.2]} 25... Rad8
{[%clk 0:01:46.1]} 26. Qf2 {[%clk 0:00:08.4]} 26... Rxd4 {[%clk 0:01:41.4]} 27.
Rxd4 {[%clk 0:00:08.5]} 27... Qh1+ {[%clk 0:01:40.2]} 28. Qg1 {[%clk 0:00:06.9]}
28... Qxg1+ {[%clk 0:01:40.4]} 29. Kxg1 {[%clk 0:00:07.8]} 29... Bxd4+ {[%clk
0:01:40.2]} 0-1

[Event "Late-Titled-Tuesday-Blitz-April-30-2024"]
[Site "Chess.com"]
[Date "2024.04.30"]
[Round "3"]
[White "RandomNoob04"]
[Black "Polish_fighter3000"]
[Result "0-1"]
[WhiteElo "2731"]
[BlackElo "3076"]
[TimeControl "180+1"]
[EndTime "14:27:38 PDT"]
[Termination "Polish_fighter3000 won by resignation"]

1. e4 {[%clk 0:03:00.9]} 1... c6 {[%clk 0:02:57.9]} 2. c4 {[%clk 0:03:00.1]}
2... e5 {[%clk 0:02:54.8]} 3. Nf3 {[%clk 0:03:00.1]} 3... d6 {[%clk 0:02:54.5]}
4. d4 {[%clk 0:03:00.8]} 4... Nd7 {[%clk 0:02:55.1]} 5. Nc3 {[%clk 0:03:01.3]}
5... Be7 {[%clk 0:02:55.1]} 6. Be2 {[%clk 0:03:00.4]} 6... Ngf6 {[%clk
0:02:54.8]} 7. O-O {[%clk 0:03:01]} 7... O-O {[%clk 0:02:55.2]} 8. h3 {[%clk
0:03:00.9]} 8... Re8 {[%clk 0:02:55.4]} 9. Be3 {[%clk 0:03:00.2]} 9... Bf8
{[%clk 0:02:52.4]} 10. d5 {[%clk 0:02:58.4]} 10... a5 {[%clk 0:02:52.2]} 11. Qc2
{[%clk 0:02:56.3]} 11... Qc7 {[%clk 0:02:51.1]} 12. Rad1 {[%clk 0:02:54.1]}
12... g6 {[%clk 0:02:50.3]} 13. Nd2 {[%clk 0:02:38.8]} 13... Bg7 {[%clk
0:02:40]} 14. Kh1 {[%clk 0:02:38.4]} 14... Nc5 {[%clk 0:02:35.3]} 15. Bxc5
{[%clk 0:02:19.8]} 15... dxc5 {[%clk 0:02:36.2]} 16. Nf3 {[%clk 0:02:20.2]}
16... Bf8 {[%clk 0:02:33.1]} 17. dxc6 {[%clk 0:02:04.4]} 17... bxc6 {[%clk
0:02:32.6]} 18. b3 {[%clk 0:01:57.7]} 18... Nh5 {[%clk 0:02:28.5]} 19. Bd3
{[%clk 0:01:44.8]} 19... Nf4 {[%clk 0:02:27.2]} 20. Ne2 {[%clk 0:01:44.6]} 20...
Ne6 {[%clk 0:02:25.3]} 21. Qd2 {[%clk 0:01:13.9]} 21... a4 {[%clk 0:02:16.3]}
22. Ne1 {[%clk 0:00:56.7]} 22... axb3 {[%clk 0:02:14.4]} 23. axb3 {[%clk
0:00:57.6]} 23... h5 {[%clk 0:02:07.2]} 24. Qe3 {[%clk 0:00:45.4]} 24... Qe7
{[%clk 0:01:56.3]} 25. Qg3 {[%clk 0:00:44.4]} 25... Qf6 {[%clk 0:01:55]} 26. f4
{[%clk 0:00:43.2]} 26... exf4 {[%clk 0:01:49.2]} 27. Nxf4 {[%clk 0:00:44.1]}
27... Bd6 {[%clk 0:01:47]} 28. Nxh5 {[%clk 0:00:23.5]} 28... Qxf1+ {[%clk
0:01:46.5]} 29. Bxf1 {[%clk 0:00:23.8]} 29... Bxg3 {[%clk 0:01:47.1]} 30. Nxg3
{[%clk 0:00:24.7]} 30... Rb8 {[%clk 0:01:47.5]} 31. Rd3 {[%clk 0:00:19.9]} 31...
Nd4 {[%clk 0:01:46.6]} 32. Ne2 {[%clk 0:00:09.3]} 32... Rxe4 {[%clk 0:01:43.1]}
0-1

[Event "Late-Titled-Tuesday-Blitz-April-30-2024"]
[Site "Chess.com"]
[Date "2024.04.30"]
[Round "3"]
[White "artin10862"]
[Black "HalfIsCrayfish"]
[Result "1-0"]
[WhiteElo "2858"]
[BlackElo "2586"]
[TimeControl "180+1"]
[EndTime "14:27:39 PDT"]
[Termination "artin10862 won by resignation"]

1. c4 {[%clk 0:02:57.6]} 1... Nf6 {[%clk 0:02:58.9]} 2. Nc3 {[%clk 0:02:55.6]}
2... e5 {[%clk 0:02:56.9]} 3. Nf3 {[%clk 0:02:52.1]} 3... Nc6 {[%clk 0:02:56.5]}
4. e4 {[%clk 0:02:46.5]} 4... Bb4 {[%clk 0:02:54.9]} 5. d3 {[%clk 0:02:39.5]}
5... O-O {[%clk 0:02:52.4]} 6. a3 {[%clk 0:02:31.3]} 6... Bxc3+ {[%clk
0:02:51.4]} 7. bxc3 {[%clk 0:02:32.2]} 7... d6 {[%clk 0:02:49.6]} 8. g3 {[%clk
0:02:32.1]} 8... Ne8 {[%clk 0:02:39.4]} 9. Nh4 {[%clk 0:02:30.1]} 9... g6 {[%clk
0:02:18]} 10. Bg2 {[%clk 0:02:29.3]} 10... Ng7 {[%clk 0:02:17.1]} 11. O-O {[%clk
0:02:28.3]} 11... f5 {[%clk 0:02:17]} 12. exf5 {[%clk 0:02:27.8]} 12... Nxf5
{[%clk 0:02:16.8]} 13. Nf3 {[%clk 0:02:21.6]} 13... Bd7 {[%clk 0:02:04.4]} 14.
h4 {[%clk 0:02:16.2]} 14... Ng7 {[%clk 0:01:58.5]} 15. Ng5 {[%clk 0:02:14.6]}
15... Qe7 {[%clk 0:01:46.2]} 16. Qb3 {[%clk 0:02:09.9]} 16... Kh8 {[%clk
0:00:57.3]} 17. Qxb7 {[%clk 0:02:03.2]} 17... Rab8 {[%clk 0:00:57.3]} 18. Qxc7
{[%clk 0:02:03.2]} 18... Rbc8 {[%clk 0:00:46.1]} 19. Qb7 {[%clk 0:01:56.4]}
19... Rb8 {[%clk 0:00:46.5]} 20. Qa6 {[%clk 0:01:50]} 20... Rb6 {[%clk 0:00:38]}
21. Qa4 {[%clk 0:01:49.7]} 21... e4 {[%clk 0:00:29.3]} 22. Nxe4 {[%clk
0:01:41.5]} 22... Bg4 {[%clk 0:00:18.2]} 23. Bg5 {[%clk 0:01:39.1]} 23... Qe6
{[%clk 0:00:16.8]} 24. d4 {[%clk 0:01:34.7]} 24... Be2 {[%clk 0:00:12.1]} 25.
Rfe1 {[%clk 0:01:31.5]} 25... Bxc4 {[%clk 0:00:12]} 26. Nd2 {[%clk 0:01:27.9]}
26... Bd3 {[%clk 0:00:11.7]} 1-0

[Event "Late-Titled-Tuesday-Blitz-April-30-2024"]
[Site "Chess.com"]
[Date "2024.04.30"]
[Round "3"]
[White "DuleMudule"]
[Black "WPWPWP-2015"]
[Result "1-0"]
[WhiteElo "2785"]
[BlackElo "2484"]
[TimeControl "180+1"]
[EndTime "14:27:40 PDT"]
[Termination "DuleMudule won on time"]

1. d4 {[%clk 0:03:00.9]} 1... Nf6 {[%clk 0:02:59.3]} 2. Bg5 {[%clk 0:03:00.7]}
2... e6 {[%clk 0:02:58.4]} 3. e3 {[%clk 0:03:00.3]} 3... Be7 {[%clk 0:02:57.5]}
4. Nd2 {[%clk 0:02:59.9]} 4... O-O {[%clk 0:02:57.7]} 5. Ngf3 {[%clk 0:02:59.2]}
5... b6 {[%clk 0:02:57.2]} 6. Bxf6 {[%clk 0:02:59.6]} 6... Bxf6 {[%clk
0:02:56.9]} 7. Bd3 {[%clk 0:03:00.5]} 7... Bb7 {[%clk 0:02:56.4]} 8. h4 {[%clk
0:03:00.6]} 8... h6 {[%clk 0:02:51.6]} 9. g4 {[%clk 0:02:59.8]} 9... Be7 {[%clk
0:02:29.9]} 10. g5 {[%clk 0:02:58.5]} 10... h5 {[%clk 0:02:29.8]} 11. g6 {[%clk
0:02:59.1]} 11... fxg6 {[%clk 0:02:11.4]} 12. Bxg6 {[%clk 0:02:58.3]} 12... Rf6
{[%clk 0:02:11.4]} 13. Rg1 {[%clk 0:02:57.4]} 13... d6 {[%clk 0:02:00.8]} 14.
Nh2 {[%clk 0:02:49.4]} 14... Nd7 {[%clk 0:01:41.6]} 15. Qxh5 {[%clk 0:02:46.9]}
15... Nf8 {[%clk 0:01:40.1]} 16. Be4 {[%clk 0:02:46.8]} 16... d5 {[%clk
0:01:19.3]} 17. Bd3 {[%clk 0:02:46.1]} 17... Qe8 {[%clk 0:01:18.6]} 18. Qe2
{[%clk 0:02:41.6]} 18... Rh6 {[%clk 0:01:02.1]} 19. Ndf3 {[%clk 0:02:37.3]}
19... c5 {[%clk 0:00:48.5]} 20. Ng4 {[%clk 0:02:34.1]} 20... Rh5 {[%clk
0:00:48]} 21. c3 {[%clk 0:02:32.9]} 21... c4 {[%clk 0:00:46.1]} 22. Bc2 {[%clk
0:02:32.6]} 22... b5 {[%clk 0:00:46.6]} 23. Nfe5 {[%clk 0:02:24.9]} 23... b4
{[%clk 0:00:39.8]} 24. Kd2 {[%clk 0:02:11.3]} 24... a5 {[%clk 0:00:32.3]} 25.
Rg3 {[%clk 0:02:10.7]} 25... a4 {[%clk 0:00:26.2]} 26. Rag1 {[%clk 0:02:10.4]}
26... Kh8 {[%clk 0:00:20.4]} 27. Nh2 {[%clk 0:02:09.5]} 27... Bf6 {[%clk
0:00:19.8]} 28. Ng6+ {[%clk 0:02:09.1]} 28... Kg8 {[%clk 0:00:06.4]} 29. Qxh5
{[%clk 0:02:08.4]} 29... a3 {[%clk 0:00:02.6]} 30. Qh8+ {[%clk 0:02:06.4]} 30...
Kf7 {[%clk 0:00:02.9]} 31. Ne5+ {[%clk 0:02:07.2]} 31... Ke7 {[%clk 0:00:03.2]}
32. Rxg7+ {[%clk 0:02:07.1]} 32... Kd6 {[%clk 0:00:03.5]} 33. Rxb7 {[%clk
0:02:06.7]} 33... b3 {[%clk 0:00:03.3]} 34. Qxf6 {[%clk 0:02:03.8]} 1-0

[Event "Late-Titled-Tuesday-Blitz-April-30-2024"]
[Site "Chess.com"]
[Date "2024.04.30"]
[Round "3"]
[White "trriinu"]
[Black "subham777"]
[Result "0-1"]
[WhiteElo "2246"]
[BlackElo "2472"]
[TimeControl "180+1"]
[EndTime "14:27:41 PDT"]
[Termination "subham777 won by resignation"]

1. e4 {[%clk 0:03:00.5]} 1... e6 {[%clk 0:03:00.4]} 2. d4 {[%clk 0:03:00.3]}
2... d5 {[%clk 0:02:59.7]} 3. Nd2 {[%clk 0:03:01]} 3... c5 {[%clk 0:02:59.4]} 4.
Ngf3 {[%clk 0:03:01]} 4... cxd4 {[%clk 0:02:59.4]} 5. Nxd4 {[%clk 0:03:01.1]}
5... Nc6 {[%clk 0:02:58.5]} 6. Nxc6 {[%clk 0:02:58.8]} 6... bxc6 {[%clk
0:02:58.7]} 7. g3 {[%clk 0:02:56.7]} 7... Bd6 {[%clk 0:02:58.5]} 8. Bg2 {[%clk
0:02:56.7]} 8... Ne7 {[%clk 0:02:58.5]} 9. O-O {[%clk 0:02:56.7]} 9... O-O
{[%clk 0:02:58.5]} 10. Re1 {[%clk 0:02:41]} 10... Ng6 {[%clk 0:02:56.1]} 11. Nb3
{[%clk 0:02:31.1]} 11... a5 {[%clk 0:02:50.1]} 12. Be3 {[%clk 0:02:28.5]} 12...
a4 {[%clk 0:02:48.1]} 13. Nc5 {[%clk 0:02:26.8]} 13... Qa5 {[%clk 0:02:37.9]}
14. Nd3 {[%clk 0:02:08.5]} 14... Ba6 {[%clk 0:02:26.4]} 15. Bd2 {[%clk
0:01:49.6]} 15... Qb6 {[%clk 0:02:21.1]} 16. e5 {[%clk 0:01:23.1]} 16... Be7
{[%clk 0:02:16.3]} 17. Bf1 {[%clk 0:00:38.6]} 17... c5 {[%clk 0:02:12.4]} 18. h4
{[%clk 0:00:31.7]} 18... c4 {[%clk 0:02:04.1]} 19. Nf4 {[%clk 0:00:17]} 19...
Qxb2 {[%clk 0:01:49.3]} 20. h5 {[%clk 0:00:04.2]} 20... Nxe5 {[%clk 0:01:37.7]}
21. Rb1 {[%clk 0:00:02.8]} 21... Qd4 {[%clk 0:01:36.6]} 22. c3 {[%clk
0:00:03.1]} 22... Qxd2 {[%clk 0:01:36.5]} 23. Qxd2 {[%clk 0:00:03]} 23... Nf3+
{[%clk 0:01:36.5]} 24. Kg2 {[%clk 0:00:03]} 24... Nxd2 {[%clk 0:01:37.4]} 25.
Nxd5 {[%clk 0:00:02.7]} 25... exd5 {[%clk 0:01:35.9]} 26. Rxe7 {[%clk
0:00:02.5]} 26... Nxb1 {[%clk 0:01:34.9]} 0-1

[Event "Late-Titled-Tuesday-Blitz-April-30-2024"]
[Site "Chess.com"]
[Date "2024.04.30"]
[Round "3"]
[White "PNEPaul"]
[Black "ploxoi"]
[Result "0-1"]
[WhiteElo "1952"]
[BlackElo "2369"]
[TimeControl "180+1"]
[EndTime "14:27:45 PDT"]
[Termination "ploxoi won by resignation"]

1. e4 {[%clk 0:02:27.9]} 1... c6 {[%clk 0:02:51.7]} 2. d4 {[%clk 0:02:27.1]}
2... d5 {[%clk 0:02:51]} 3. Nc3 {[%clk 0:02:27.1]} 3... dxe4 {[%clk 0:02:51]} 4.
f3 {[%clk 0:02:27.4]} 4... Nf6 {[%clk 0:02:51.9]} 5. fxe4 {[%clk 0:02:27]} 5...
Bg4 {[%clk 0:02:50.4]} 6. Be2 {[%clk 0:02:27]} 6... Bxe2 {[%clk 0:02:49]} 7.
Ngxe2 {[%clk 0:02:26.8]} 7... e6 {[%clk 0:02:49.6]} 8. O-O {[%clk 0:02:26.7]}
8... Be7 {[%clk 0:02:48.5]} 9. Bg5 {[%clk 0:02:24.3]} 9... O-O {[%clk 0:02:48]}
10. Bxf6 {[%clk 0:02:24.4]} 10... Bxf6 {[%clk 0:02:47.6]} 11. e5 {[%clk
0:02:24.6]} 11... Be7 {[%clk 0:02:47.7]} 12. Ne4 {[%clk 0:02:24.6]} 12... Nd7
{[%clk 0:02:45.1]} 13. c3 {[%clk 0:02:23.5]} 13... c5 {[%clk 0:02:44.3]} 14. Kh1
{[%clk 0:02:18.6]} 14... cxd4 {[%clk 0:02:40.5]} 15. cxd4 {[%clk 0:02:18.4]}
15... Qb6 {[%clk 0:02:40]} 16. Qd3 {[%clk 0:01:59.9]} 16... Rad8 {[%clk
0:02:37]} 17. Qg3 {[%clk 0:01:52.5]} 17... Kh8 {[%clk 0:02:32.4]} 18. b3 {[%clk
0:01:45.6]} 18... Qc6 {[%clk 0:02:19.7]} 19. Ng5 {[%clk 0:01:38.7]} 19... Bxg5
{[%clk 0:02:15.9]} 20. Qxg5 {[%clk 0:01:38]} 20... Qe4 {[%clk 0:02:15.6]} 21.
Rae1 {[%clk 0:01:33.9]} 21... Qg6 {[%clk 0:02:14.8]} 22. Qxg6 {[%clk 0:01:23.5]}
22... hxg6 {[%clk 0:02:13.8]} 23. Rc1 {[%clk 0:01:21.4]} 23... Rc8 {[%clk
0:02:10.3]} 24. Rxc8 {[%clk 0:01:17]} 24... Rxc8 {[%clk 0:02:09.7]} 25. Rxf7
{[%clk 0:01:16.2]} 25... Rc7 {[%clk 0:02:07.4]} 26. Re7 {[%clk 0:01:13.6]} 26...
Kg8 {[%clk 0:02:05.2]} 27. Rxe6 {[%clk 0:01:12.5]} 27... Rc2 {[%clk 0:02:05.3]}
28. Ng1 {[%clk 0:01:09.3]} 28... Rxa2 {[%clk 0:02:00.2]} 29. Re7 {[%clk
0:01:04.4]} 29... Nf8 {[%clk 0:01:56.3]} 30. Rxb7 {[%clk 0:01:02.6]} 30... Ne6
{[%clk 0:01:56.4]} 31. d5 {[%clk 0:01:01.4]} 31... Nf4 {[%clk 0:01:56.1]} 32. d6
{[%clk 0:00:47.9]} 32... Kf8 {[%clk 0:01:51.1]} 33. Rb8+ {[%clk 0:00:39]} 33...
Kf7 {[%clk 0:01:50.7]} 34. Rb7+ {[%clk 0:00:38.6]} 34... Ke8 {[%clk 0:01:49.9]}
35. Rxg7 {[%clk 0:00:30.8]} 35... Ra1 {[%clk 0:01:47.7]} 36. h3 {[%clk
0:00:30.1]} 36... Ne2 {[%clk 0:01:47.6]} 37. Rxg6 {[%clk 0:00:28.2]} 37... Nxg1
{[%clk 0:01:43.6]} 38. g4 {[%clk 0:00:20.5]} 38... Nf3+ {[%clk 0:01:42.8]} 39.
Kg2 {[%clk 0:00:17.5]} 39... Nh4+ {[%clk 0:01:43.4]} 0-1

[Event "Late-Titled-Tuesday-Blitz-April-30-2024"]
[Site "Chess.com"]
[Date "2024.04.30"]
[Round "3"]
[White "Alexei_Gubajdullin"]
[Black "KebabJangles"]
[Result "1-0"]
[WhiteElo "2565"]
[BlackElo "2312"]
[TimeControl "180+1"]
[EndTime "14:27:49 PDT"]
[Termination "Alexei_Gubajdullin won by resignation"]

1. Nf3 {[%clk 0:03:00]} 1... Nf6 {[%clk 0:02:59.5]} 2. g3 {[%clk 0:02:58.3]}
2... g6 {[%clk 0:02:59.4]} 3. Bg2 {[%clk 0:02:54.7]} 3... Bg7 {[%clk 0:02:59.3]}
4. O-O {[%clk 0:02:52.8]} 4... O-O {[%clk 0:02:58.4]} 5. d3 {[%clk 0:02:49]}
5... d6 {[%clk 0:02:54.6]} 6. Nbd2 {[%clk 0:02:47.9]} 6... c5 {[%clk 0:02:52.8]}
7. e4 {[%clk 0:02:47]} 7... Nc6 {[%clk 0:02:52.5]} 8. Re1 {[%clk 0:02:43.7]}
8... Rb8 {[%clk 0:02:51.3]} 9. a4 {[%clk 0:02:42.4]} 9... a6 {[%clk 0:02:50.5]}
10. Nc4 {[%clk 0:02:40.1]} 10... b5 {[%clk 0:02:47.3]} 11. axb5 {[%clk
0:02:36.5]} 11... axb5 {[%clk 0:02:48.2]} 12. Ne3 {[%clk 0:02:36.9]} 12... Bb7
{[%clk 0:02:46.7]} 13. h4 {[%clk 0:02:24.3]} 13... Ra8 {[%clk 0:02:28.8]} 14.
Rxa8 {[%clk 0:02:21.3]} 14... Qxa8 {[%clk 0:02:29.7]} 15. Nd5 {[%clk 0:02:21]}
15... e6 {[%clk 0:02:17.2]} 16. Nxf6+ {[%clk 0:02:16.1]} 16... Bxf6 {[%clk
0:02:18.1]} 17. h5 {[%clk 0:02:16.1]} 17... Qa2 {[%clk 0:02:15.4]} 18. Nh2
{[%clk 0:01:59.7]} 18... Bxb2 {[%clk 0:02:10.7]} 19. Bh6 {[%clk 0:01:57]} 19...
Bg7 {[%clk 0:02:09.8]} 20. Bxg7 {[%clk 0:01:53.5]} 20... Kxg7 {[%clk 0:02:10.7]}
21. Ng4 {[%clk 0:01:53]} 21... Qb2 {[%clk 0:02:04.4]} 22. Qd2 {[%clk 0:01:51.3]}
22... Kg8 {[%clk 0:01:53.2]} 23. e5 {[%clk 0:01:48.6]} 23... Nxe5 {[%clk
0:01:30.1]} 24. Rxe5 {[%clk 0:01:28.1]} 24... Bxg2 {[%clk 0:00:59.3]} 25. Qh6
{[%clk 0:01:20.6]} 25... Qc1+ {[%clk 0:00:10.7]} 26. Qxc1 {[%clk 0:01:18.9]} 1-0